bitfinex/quotes_ETHUSD_20260306
["timestamp","ask_amount","ask_price","bid_price","bid_amount"]
[1772818923524,2.4814655,1957.0,1956.2,0.48457722]
[1772818924141,1.2774655,1957.0,1956.2,0.48457722]
[1772818924345,1.27738075,1957.2,1956.2,0.48457722]
[1772818924701,1.73142625,1957.2,1956.3,1.2779226]
[1772818925122,1.73142625,1957.2,1956.3,1.76249982]
[1772818925301,1.27738075,1957.2,1956.4,0.48457722]
[1772818925502,1.73142625,1957.2,1956.4,0.48457722]
[1772818926302,0.4540455,1957.1,1956.3,1.2779226]
[1772818927026,1.2774655,1957.0,1956.3,0.48457722]
[1772818927438,1.2772557,1957.4,1956.3,0.48457722]
[1772818927649,1.2772557,1957.4,1956.4,0.48457722]
[1772818928002,1.7313012,1957.4,1956.4,0.48457722]
[1772818928609,0.4540455,1957.3,1956.4,0.48457722]
[1772818928809,1.27733496,1957.2,1956.5,1.27779197]
[1772818929524,1.27733496,1957.2,1956.5,1.76236919]
[1772818931035,1.27733496,1957.2,1956.6,0.48457722]
[1772818932938,1.2772697,1957.4,1956.7,1.76223858]
[1772818933136,1.27707396,1957.6,1956.8,0.48457722]
[1772818933936,1.73110092,1957.7,1956.8,0.48457722]
[1772818934819,0.001,1957.1,1956.8,0.48457722]
[1772818935025,1.27705542,1957.7,1957.0,0.48457722]
[1772818937138,1.27705542,1957.7,1957.1,1.76197745]
[1772818937512,1.27799071,1957.8,1957.1,1.76197745]
[1772818937715,1.73203621,1957.8,1957.1,1.76197745]
[1772818938020,1.73203621,1957.8,1956.9,5.11003853]
[1772818938021,0.4540455,1957.7,1956.9,5.11003853]
[1772818938217,0.4540455,1957.7,1956.8,1.76216541]
[1772818938849,0.4540455,1957.5,1956.6,2.70925868]
[1772818939053,1.27720445,1957.4,1956.6,2.70925868]
[1772818939853,1.73124995,1957.4,1956.6,2.70925868]
[1772818940370,0.4540455,1957.3,1956.5,1.27773526]
[1772818940525,0.4540455,1957.3,1956.4,1.76348555]
[1772818940862,0.4540455,1957.2,1956.4,0.0011]
[1772818941066,0.4540455,1957.0,1956.4,0.0011]
[1772818941218,0.4540455,1956.9,1956.4,0.0011]
[1772818943162,1.73164157,1956.8,1956.4,0.0011]
[1772818943861,1.27759607,1956.8,1956.4,0.0011]
[1772818944535,0.4540455,1957.1,1956.4,0.0011]
[1772818944861,0.001,1959.1,1956.4,0.48567722]
[1772818944862,1.73129817,1957.4,1956.4,0.48567722]
[1772818945360,0.4540455,1957.3,1956.5,1.27779197]
[1772818945720,0.4540455,1957.3,1956.6,0.48457722]
[1772818945924,1.27725267,1957.4,1956.6,0.48457722]
[1772818946324,1.27725267,1957.4,1956.4,0.0011]
[1772818946325,0.4540455,1957.3,1956.4,0.0011]
[1772818946549,0.4540455,1957.2,1956.4,1.27895446]
[1772818946752,0.4540455,1957.2,1956.4,1.27894908]
[1772818947165,0.4540455,1957.2,1956.4,1.7635263]
[1772818947329,1.73129817,1957.4,1956.6,1.76230388]
[1772818947956,0.001,1957.3,1956.6,1.76230388]
[1772818948162,0.001,1957.3,1956.7,0.48457722]
[1772818949348,0.001,1957.3,1956.7,1.76217967]
[1772818950678,0.001,1957.3,1956.8,0.48457722]
[1772818950974,1.2770494,1957.7,1956.9,0.48457722]
[1772818951680,1.2770494,1957.7,1957.0,1.76204272]
[1772818952943,1.73202639,1957.8,1957.0,1.76204272]
[1772818953646,1.73202639,1957.8,1957.1,0.46527686]
[1772818955779,1.73202639,1957.8,1957.2,1.27733496]
[1772818956868,0.49751061,1957.7,1957.2,1.27733496]
[1772818957059,1.27798089,1957.8,1957.2,1.27733496]
[1772818957263,1.27798089,1957.8,1957.2,1.73361689]
[1772818957664,0.001,1957.8,1957.2,1.73361689]
[1772818958059,0.49851061,1957.8,1957.2,1.73361689]
[1772818958378,0.49851061,1957.8,1957.2,1.27733496]
[1772818958560,0.001,1957.8,1957.3,0.45628193]
[1772818958766,2.57095902,1958.4,1957.2,1.27733496]
[1772818958767,1.77421766,1958.2,1957.4,0.45528193]
[1772818959780,1.77421766,1958.2,1957.6,0.45528193]
[1772818960167,1.27661747,1958.3,1957.6,0.45528193]
[1772818960364,1.77498158,1958.6,1957.6,0.45528193]
[1772818960570,1.77498158,1958.6,1957.7,0.45528193]
[1772818960876,1.77498158,1958.6,1957.5,0.45528193]
[1772818960877,0.49751061,1958.5,1957.5,0.45528193]
[1772818961187,0.49751061,1958.5,1957.2,0.0011]
[1772818961188,0.49851061,1958.1,1957.2,0.0011]
[1772818961381,0.49751061,1957.9,1957.3,1.2772697]
[1772818961774,1.2769435,1957.8,1957.2,0.0011]
[1772818961961,1.77445411,1957.8,1957.2,0.0011]
[1772818962696,0.49751061,1957.7,1957.2,0.0011]
[1772818963868,1.27707396,1957.6,1957.2,0.0011]
[1772818964103,1.27697522,1957.8,1957.2,0.0011]
[1772818964490,0.49751061,1957.7,1957.2,0.0011]
[1772818965798,1.77435174,1958.0,1957.3,1.2772697]
[1772818966000,1.27684113,1958.0,1957.3,1.2772697]
[1772818966234,0.49751061,1957.9,1957.2,1.27843496]
[1772818967003,0.49751061,1957.9,1957.2,1.73371689]
[1772818967700,1.27681594,1958.0,1957.3,0.45528193]
[1772818967906,0.49751061,1957.9,1957.2,1.2784289]
[1772818969273,0.49751061,1957.9,1957.2,0.0011]
[1772818969471,0.49751061,1957.8,1957.2,0.0011]
[1772818969902,1.77451934,1957.7,1957.2,0.0011]
[1772818970308,0.49751061,1957.6,1957.2,0.0011]
[1772818970603,0.49751061,1957.6,1957.0,0.0011]
[1772818970992,0.49751061,1957.5,1957.0,0.0011]
[1772818971810,1.27720445,1957.4,1957.0,0.0011]
[1772818972016,0.49751061,1957.3,1957.0,0.0011]
[1772818973098,0.49751061,1957.3,1956.5,1.27888177]
[1772818973787,0.49751061,1957.3,1956.5,0.0011]
[1772818973989,0.49751061,1957.1,1956.5,0.0011]
[1772818975010,0.49751061,1957.1,1957.0,0.0011]
[1772818975185,0.49751061,1957.1,1956.5,0.0011]
[1772818976112,1.2774655,1957.0,1956.5,0.0011]
[1772818977692,1.77496272,1957.1,1956.5,0.0011]
[1772818979689,1.77496272,1957.1,1956.5,0.45748193]
[1772818980085,5.10911059,1957.3,1956.5,0.45748193]
[1772818980294,5.58181744,1957.3,1956.6,1.73410859]
[1772818980717,5.58181744,1957.3,1956.6,0.45638193]
[1772818981712,0.47270685,1957.2,1956.5,1.27886769]
[1772818981891,0.47270685,1957.2,1956.5,1.27887896]
[1772818982093,0.47270685,1957.2,1956.5,1.27888221]
[1772818982295,1.27740023,1957.1,1956.5,0.45748193]
[1772818982923,0.47164884,1957.0,1956.5,0.0011]
[1772818983801,1.27740023,1957.1,1956.5,0.0011]
[1772818983802,0.47164884,1957.1,1956.5,0.0011]
[1772818984007,1.27738194,1957.2,1956.5,0.0011]
[1772818984008,1.27738194,1957.2,1956.5,0.45748193]
[1772818984317,0.47164884,1957.8,1956.7,0.45638193]
[1772818984512,1.27801197,1957.7,1956.7,0.45638193]
[1772818984826,0.001,1957.7,1956.7,0.45638193]
[1772818984995,1.7494255,1958.1,1956.8,0.45538193]
[1772818985198,0.47164884,1958.0,1956.9,0.948]
[1772818985495,0.47164884,1958.0,1957.0,0.45538193]
[1772818985690,0.001,1958.1,1957.0,0.45538193]
[1772818986200,0.001,1958.1,1957.4,0.45538193]
[1772818986394,0.001,1958.6,1957.6,0.45538193]
[1772818986608,0.001,1958.6,1957.7,0.45538193]
[1772818987097,1.74907653,1958.6,1957.7,0.45538193]
[1772818987303,0.001,1958.6,1957.8,0.45538193]
[1772818988199,0.001,1958.6,1958.0,0.45538193]
[1772818990228,0.47264884,1958.6,1958.0,1.27678826]
[1772818990829,0.47264884,1958.6,1957.9,1.27683384]
[1772818991908,0.001,1958.6,1958.0,0.45538193]
[1772818992300,2.13744203,1958.4,1957.2,0.45538193]
[1772818992513,0.47164884,1958.3,1957.3,0.947]
[1772818992716,0.47164884,1958.3,1957.2,0.45538193]
[1772818993128,0.47164884,1958.3,1957.0,1.27744284]
[1772818993300,0.47164884,1958.3,1957.1,0.45538193]
[1772818994337,0.47164884,1958.1,1957.2,1.27733496]
[1772818995732,0.47164884,1958.1,1957.1,1.73275672]
[1772818996697,1.74846191,1958.0,1957.1,1.73275672]
[1772818997616,0.47164884,1957.9,1957.1,1.73275672]
[1772818998706,1.74858877,1957.9,1957.2,0.45538193]
[1772818998934,1.27683868,1958.0,1957.2,0.45538193]
[1772818999251,0.001,1958.0,1957.2,0.45538193]
[1772819000814,0.001,1958.0,1957.4,0.3963082]
[1772819001016,0.001,1958.0,1957.5,1.3433082]
[1772819002611,1.27651889,1958.5,1957.7,0.3953082]
[1772819002815,5.10688172,1958.6,1957.8,1.2769435]
[1772819002816,5.57853056,1958.6,1957.8,1.2769435]
[1772819003035,0.47164884,1958.5,1957.7,1.27697104]
[1772819004245,0.47164884,1958.5,1957.8,0.3953082]
[1772819004551,0.001,1958.6,1957.8,0.3953082]
[1772819005804,0.001,1958.6,1957.9,1.27687828]
[1772819006009,0.001,1958.6,1958.0,0.3953082]
[1772819006434,0.47264884,1958.6,1957.9,1.27687828]
[1772819007916,1.74908075,1958.6,1957.9,0.3953082]
[1772819008118,0.001,1958.6,1957.9,0.3953082]
[1772819008650,1.27742318,1958.6,1958.0,1.3423082]
[1772819009217,1.74907202,1958.6,1958.0,0.947]
[1772819009952,0.001,1958.6,1958.2,1.27668266]
[1772819010844,0.001,1958.6,1958.2,0.3953082]
[1772819011040,0.001,1958.5,1958.0,2.22379703]
[1772819011838,0.001,1958.5,1958.0,2.61910523]
[1772819012036,0.001,1958.5,1958.2,1.27668266]
[1772819012813,0.001,1958.5,1958.1,1.67200377]
[1772819013014,0.49747972,1958.5,1957.5,1.6724474]
[1772819013341,0.49747972,1958.5,1957.6,0.947]
[1772819013744,0.49747972,1958.5,1957.6,1.3423082]
[1772819014111,1.27752375,1958.5,1957.8,0.3953082]
[1772819014441,0.49647972,1958.4,1957.6,0.947]
[1772819015149,0.49647972,1958.3,1957.6,0.947]
[1772819015556,0.49647972,1958.3,1957.6,2.22406758]
[1772819015929,0.49647972,1958.3,1957.6,0.947]
[1772819016138,0.49647972,1958.0,1957.2,2.49567544]
[1772819016658,0.49647972,1958.0,1957.2,1.2183744]
[1772819016855,0.49647972,1958.0,1957.2,2.4956968]
[1772819018049,0.49647972,1957.8,1957.2,1.2183744]
[1772819018253,0.49647972,1957.8,1957.2,2.49568856]
[1772819019022,0.49647972,1957.8,1957.2,1.2183744]
[1772819020032,0.49647972,1957.6,1957.2,1.2183744]
[1772819020470,0.49647972,1957.6,1957.2,0.04685868]
[1772819020761,0.49647972,1957.5,1957.2,0.04685868]
[1772819020960,0.49647972,1957.5,1957.0,0.0011]
[1772819021662,0.49647972,1957.5,1956.6,0.0011]
[1772819021663,0.95119999,1956.7,1956.6,0.0011]
[1772819021871,0.95119999,1956.7,1956.6,0.0033]
[1772819023165,0.49647972,1956.6,1956.4,1e-08]
[1772819023733,0.95119999,1956.7,1956.4,1e-08]
[1772819023928,2.72535365,1956.7,1956.4,1e-08]
[1772819024158,1.27779197,1956.5,1956.4,1e-08]
[1772819024541,5.60742919,1956.6,1956.4,1e-08]
[1772819024542,1.7742081,1956.6,1956.4,1e-08]
[1772819025158,0.49647972,1956.5,1956.4,1e-08]
[1772819025845,0.49647972,1956.5,1955.8,1.27819528]
[1772819026046,0.49647972,1956.5,1955.7,6.09508812]
[1772819026047,0.49647972,1956.1,1955.7,0.98196706]
[1772819026281,5.5431875,1956.6,1955.7,2.26026676]
[1772819026282,1.2779226,1956.3,1955.7,2.26026676]
[1772819026429,1.77440232,1956.3,1955.7,2.26026676]
[1772819026627,0.49647972,1956.6,1955.8,0.47675298]
[1772819026951,0.95119999,1956.7,1956.0,0.47675298]
[1772819027127,1.55297009,1957.6,1956.0,0.47675298]
[1772819027331,1.55297009,1957.6,1956.2,0.47675298]
[1772819027645,0.34997009,1957.4,1956.2,0.47675298]
[1772819028029,1.27700873,1957.7,1956.2,0.47675298]
[1772819028030,0.34997009,1957.6,1956.2,0.47675298]
[1772819028232,1.2771392,1957.5,1956.4,0.47675298]
[1772819028432,0.34997009,1957.4,1956.4,0.47675298]
[1772819029178,5.45821255,1957.7,1956.4,0.47675298]
[1772819029466,1.27700873,1957.7,1956.6,0.47675298]
[1772819029668,5.4666427,1957.8,1956.6,0.47675298]
[1772819029669,1.63575566,1957.8,1956.6,0.47675298]
[1772819029882,1.63575566,1957.8,1956.5,0.948]
[1772819029883,0.35876674,1957.8,1956.8,0.47675298]
[1772819030044,1.203,1958.2,1956.9,0.47675298]
[1772819030359,0.001,1958.4,1957.1,0.47675298]
[1772819030559,0.34997009,1958.3,1957.3,0.47675298]
[1772819031540,2.48269965,1958.1,1957.3,0.47675298]
[1772819031866,0.34997009,1958.0,1957.0,0.47675298]
[1772819032072,0.34997009,1957.9,1957.0,0.47675298]
[1772819032239,1.2769435,1957.8,1957.0,1.75421014]
[1772819033873,1.62691359,1957.8,1957.0,1.75421105]
[1772819034048,3.40967306,1957.8,1956.9,1.2774956]
[1772819034245,1.27707396,1957.6,1956.9,1.75424858]
[1772819034449,1.62704405,1957.6,1956.7,5.1106419]
[1772819034768,0.34997009,1957.4,1956.5,0.47675298]
[1772819034943,0.34997009,1957.4,1956.2,0.47675298]
[1772819035142,0.34997009,1957.3,1956.3,0.47675298]
[1772819035548,1.27707396,1957.6,1956.3,0.47675298]
[1772819036469,1.27707396,1957.6,1956.5,0.46204374]
[1772819036651,5.45826596,1957.7,1956.7,0.46204374]
[1772819036652,0.001,1957.7,1956.7,0.46204374]
[1772819037169,1.27686271,1958.0,1956.8,0.46204374]
[1772819037870,5.10679505,1958.2,1956.8,0.46204374]
[1772819038369,1.27668266,1958.3,1957.0,0.46204374]
[1772819040675,0.001,1958.4,1957.2,0.46204374]
[1772819041053,2.25979611,1958.4,1957.2,0.46204374]
[1772819041256,0.12606655,1957.7,1956.8,0.46204374]
[1772819042047,0.12606655,1958.0,1956.8,0.46204374]
[1772819042254,0.12606655,1958.3,1956.8,0.46204374]
[1772819042485,1.27668266,1958.2,1957.0,0.47052497]
[1772819042650,0.12606655,1958.1,1957.0,0.47052497]
[1772819044769,1.27681307,1958.0,1957.1,1.7479252]
[1772819045345,1.27681307,1958.0,1957.2,0.47052497]
[1772819046146,1.40287962,1958.0,1957.2,0.47052497]
[1772819046544,1.27681307,1958.0,1957.2,0.47052497]
[1772819046778,5.10725229,1958.2,1957.3,1.74779467]
[1772819047871,5.23331884,1958.2,1957.3,1.74779467]
[1772819048585,0.001,1957.9,1957.4,0.47052497]
[1772819049374,0.001,1957.9,1957.4,1.74772154]
[1772819049776,0.001,1957.9,1957.5,0.47052497]
[1772819051189,0.001,1957.9,1957.6,1.74759893]
[1772819051493,0.001,1957.9,1957.6,0.47052497]
[1772819053168,0.001,1958.4,1957.8,0.47052497]
[1772819053368,0.001,1958.5,1957.8,0.47052497]
[1772819053369,0.001,1958.6,1957.8,0.47052497]
[1772819055172,0.001,1958.6,1958.0,0.47052497]
[1772819055369,0.001,1958.9,1958.7,0.47052497]
[1772819055876,0.001,1958.9,1958.2,0.47052497]
[1772819057302,0.001,1958.9,1958.3,0.47052497]
[1772819059377,0.001,1958.9,1958.5,0.47052497]
[1772819060071,0.001,1959.1,1958.7,0.47052497]
[1772819061003,2.51911857,1959.9,1958.7,0.47052497]
[1772819061211,1.2755102,1960.1,1958.7,0.47052497]
[1772819061507,5.10127625,1960.3,1959.1,0.47052497]
[1772819061710,5.10127625,1960.3,1959.3,0.47052497]
[1772819061905,0.12806655,1960.2,1959.3,0.47052497]
[1772819062404,0.12806655,1960.0,1959.0,0.47052497]
[1772819062609,0.12806655,1960.0,1959.0,1.41552497]
[1772819062804,0.12806655,1960.0,1959.1,0.47052497]
[1772819063002,2.13272956,1960.1,1959.1,0.47052497]
[1772819063404,2.13272956,1960.1,1959.3,0.47052497]
[1772819063405,1.2755102,1960.0,1959.3,0.47052497]
[1772819065313,0.15596834,1959.9,1959.0,1.41552497]
[1772819065492,0.15596834,1959.9,1959.0,2.69167645]
[1772819065881,0.15596834,1959.7,1958.7,1.41552497]
[1772819066085,0.15596834,1959.7,1958.7,2.69187941]
[1772819066314,0.15596834,1959.7,1958.8,0.47052497]
[1772819067325,0.15596834,1959.7,1958.5,1.74700516]
[1772819067326,1.43186912,1959.4,1958.5,1.74700516]
[1772819067697,1.27590078,1959.4,1958.5,0.47052497]
[1772819067903,0.15596834,1959.2,1958.4,3.96994063]
[1772819068541,1.27590078,1959.4,1958.5,0.47052497]
[1772819068715,3.56333947,1959.4,1958.5,0.47052497]
[1772819069324,1.43186912,1959.4,1958.6,1.27642193]
[1772819069533,1.27590078,1959.4,1958.7,0.47052497]
[1772819070311,5.10360314,1959.6,1958.7,0.47052497]
[1772819070312,1.27580457,1959.6,1958.7,0.47052497]
[1772819070512,1.27575358,1959.7,1958.7,0.47052497]
[1772819070825,1.43172192,1959.7,1958.7,0.47052497]
[1772819071422,1.43172192,1959.7,1958.8,1.2762916]
[1772819071623,1.43172192,1959.7,1958.7,1.74683105]
[1772819071806,1.43172192,1959.7,1958.8,0.46399979]
[1772819072006,0.15596834,1959.6,1958.5,5.56994159]
[1772819072331,0.15596834,1959.6,1958.6,0.46399979]
[1772819072637,2.28743869,1959.5,1958.6,0.46399979]
[1772819073342,1.27575358,1959.7,1958.6,0.46399979]
[1772819073508,1.27575358,1959.7,1958.7,1.27635676]
[1772819073828,0.15696834,1959.6,1958.8,0.46399979]
[1772819074034,2.13147035,1959.3,1958.5,0.46399979]
[1772819074411,0.15596834,1959.5,1958.5,1.74048449]
[1772819074805,2.13247035,1959.6,1958.6,0.46399979]
[1772819074806,0.001,1959.6,1958.6,0.46399979]
[1772819075418,2.13247035,1959.6,1958.6,0.46399979]
[1772819075718,1.27583567,1959.5,1958.7,0.46399979]
[1772819077941,1.27583567,1959.5,1958.8,0.46399979]
[1772819078630,1.22580374,1959.5,1958.8,0.41426923]
[1772819079016,0.2056989,1959.2,1958.3,0.0011]
[1772819079217,2.13147035,1958.9,1958.0,0.46509979]
[1772819079838,1.2762916,1958.8,1958.0,0.46509979]
[1772819080455,1.2762916,1958.8,1958.1,0.46399979]
[1772819081751,1.2762916,1958.8,1958.0,0.0011]
[1772819081752,1.4819905,1958.8,1958.0,0.0011]
[1772819081925,2.33716925,1958.6,1958.0,0.0011]
[1772819082125,2.33716925,1958.6,1957.8,0.46399979]
[1772819083134,1.2762916,1958.8,1957.8,1.27691191]
[1772819083339,1.2762916,1958.8,1957.9,0.46399979]
[1772819084057,5.10516642,1958.9,1958.1,0.46399979]
[1772819084858,1.27603103,1959.2,1958.2,0.46399979]
[1772819085929,1.27603103,1959.2,1958.4,0.46399979]
[1772819087569,1.64386856,1959.3,1958.4,0.46399979]
[1772819088164,1.64386856,1959.3,1958.6,0.46399979]
[1772819089944,1.64386856,1959.3,1958.6,1.74038977]
[1772819090129,1.64386856,1959.3,1958.7,0.46399979]
[1772819090330,1.64386856,1959.3,1958.4,2.68252645]
[1772819090765,3.98103781,1959.3,1958.4,0.46399979]
[1772819091069,3.98103781,1959.3,1958.4,1.74054755]
[1772819091379,1.64386856,1959.3,1958.5,0.46399979]
[1772819092137,0.001,1959.6,1958.0,0.943]
[1772819092341,5.10412413,1959.5,1958.3,0.46399979]
[1772819093277,1.27681325,1959.6,1958.3,0.46399979]
[1772819093565,3.4082836,1959.6,1958.3,0.46399979]
[1772819093904,4.8039825,1959.6,1958.3,0.46399979]
[1772819094276,4.8039825,1959.6,1958.5,0.46399979]
[1772819095951,1.192,1959.5,1958.5,0.46399979]
[1772819096553,1.27590078,1959.4,1958.6,1.27642193]
[1772819096758,1.27588183,1959.5,1958.7,0.4864214]
[1772819096960,0.001,1959.6,1958.8,0.4864214]
[1772819098050,1.57081183,1960.0,1958.9,0.4864214]
[1772819098446,0.001,1959.5,1958.9,0.4864214]
[1772819098644,0.001,1959.5,1959.1,0.4864214]
[1772819100576,0.2953,1960.0,1959.4,0.4864214]
[1772819100874,1.57082108,1960.0,1959.4,0.4864214]
[1772819101045,0.2953,1960.0,1959.4,0.4864214]
[1772819101878,1.57083239,1960.0,1959.4,0.4864214]
[1772819102174,0.2953,1960.0,1959.4,0.4864214]
[1772819102384,1.27492477,1960.9,1959.6,0.46343981]
[1772819102564,1.27492477,1960.9,1959.7,1.27570546]
[1772819102781,0.2066989,1960.8,1959.8,0.46343981]
[1772819103889,0.2066989,1960.8,1959.3,5.10386295]
[1772819103890,0.2066989,1960.5,1959.4,0.46343981]
[1772819104058,1.3916989,1960.4,1959.4,0.46343981]
[1772819104264,0.2066989,1960.7,1959.4,0.46343981]
[1772819104475,1.185,1960.5,1959.4,0.46343981]
[1772819104788,1.186,1960.5,1959.5,1.27583567]
[1772819104956,1.186,1960.5,1959.6,0.46343981]
[1772819105581,1.27511986,1960.6,1959.6,0.46343981]
[1772819105986,1.64855156,1961.1,1959.6,0.46343981]
[1772819106563,3.98672081,1961.1,1959.6,0.46343981]
[1772819106763,3.98672081,1961.1,1959.8,0.46343981]
[1772819107066,1.85525046,1961.1,1959.8,0.46343981]
[1772819107661,2.83655156,1961.1,1959.8,0.46343981]
[1772819108088,1.64855156,1961.1,1959.8,0.46343981]
[1772819108489,1.88315224,1961.1,1959.8,0.46343981]
[1772819108789,1.27492477,1960.9,1959.9,1.27557528]
[1772819108992,1.189,1960.8,1959.9,1.73901509]
[1772819110187,0.001,1960.7,1959.9,1.73901509]
[1772819110494,0.001,1960.7,1960.0,0.46343981]
[1772819110702,1.27605482,1960.7,1960.0,0.46343981]
[1772819111062,0.23460068,1960.6,1959.7,0.46343981]
[1772819111399,0.23460068,1960.6,1959.7,1.7391418]
[1772819111890,1.19,1960.5,1959.7,1.7391418]
[1772819112098,1.19,1960.5,1959.7,0.46343981]
[1772819112594,1.19,1960.5,1959.7,1.73914161]
[1772819112802,1.27524994,1960.4,1959.7,1.73914358]
[1772819113014,2.46624994,1960.4,1959.7,1.73914358]
[1772819113211,1.27524994,1960.4,1959.7,1.73914358]
[1772819113718,1.27524994,1960.4,1959.8,0.46343981]
[1772819114706,1.50985062,1960.4,1959.5,1.75793581]
[1772819115394,1.50985062,1960.4,1959.5,1.27693263]
[1772819115592,1.50985062,1960.4,1959.5,1.75793581]
[1772819116014,1.50985062,1960.4,1959.5,0.48210318]
[1772819116220,0.23460068,1960.3,1959.2,0.48379965]
[1772819116385,0.23460068,1960.3,1959.2,1.75982103]
[1772819116712,1.192,1960.2,1959.3,0.48269965]
[1772819116873,1.27544513,1960.1,1959.5,0.48269965]
[1772819117073,1.2751849,1960.5,1959.5,0.48269965]
[1772819117282,1.192,1960.4,1959.5,0.48269965]
[1772819117482,1.2751849,1960.5,1959.5,0.48269965]
[1772819118006,1.2751618,1960.6,1959.5,0.48269965]
[1772819118308,1.27609544,1960.7,1959.5,0.48269965]
[1772819118883,0.001,1960.7,1959.7,0.48269965]
[1772819121016,0.001,1960.7,1960.0,0.48269965]
[1772819121504,1.6485162,1961.1,1960.1,0.48219965]
[1772819122516,1.64851006,1961.1,1960.1,0.48219965]
[1772819122681,1.27479616,1961.1,1960.1,0.48219965]
[1772819122882,0.001,1960.6,1960.1,0.48219965]
[1772819123118,0.001,1960.6,1960.3,0.48100318]
[1772819123678,0.001,1960.6,1960.0,1.75645915]
[1772819123881,0.001,1960.6,1960.0,0.48100318]
[1772819124110,0.001,1960.6,1959.7,0.48100318]
[1772819124499,0.001,1960.6,1959.7,1.75669198]
[1772819125212,0.12860663,1960.5,1959.5,0.0011]
[1772819126011,0.12860663,1960.2,1959.5,0.0011]
[1772819126214,2.26007698,1960.0,1959.1,0.48100318]
[1772819126382,3.45307698,1960.0,1959.1,0.48100318]
[1772819126708,3.45307698,1960.0,1959.1,5.58538472]
[1772819126709,1.32160663,1960.0,1959.1,5.58538472]
[1772819127017,0.001,1960.6,1959.3,0.48100318]
[1772819127184,0.001,1960.6,1959.5,0.48100318]
[1772819127502,0.001,1960.6,1959.7,0.48100318]
[1772819129084,0.001,1960.6,1959.7,1.7566675]
[1772819129491,0.001,1960.6,1959.8,0.48100318]
[1772819131087,0.001,1960.6,1959.9,1.27557528]
[1772819131320,0.001,1960.6,1959.8,1.75660945]
[1772819131985,0.001,1960.6,1959.8,1.75662848]
[1772819132992,0.001,1960.6,1959.9,0.47032805]
[1772819133212,0.001,1960.6,1960.1,0.47032805]
[1772819134513,6.29169911,1961.1,1960.1,0.47032805]
[1772819134514,1.27484777,1961.1,1960.1,0.47032805]
[1772819135011,1.27484777,1961.1,1961.0,0.05]
[1772819135189,1.27484777,1961.1,1960.1,0.47032805]
[1772819135389,0.001,1960.5,1960.3,0.47032805]
[1772819135609,5.10017903,1961.2,1960.3,0.47032805]
[1772819135820,0.001,1961.2,1960.3,0.47032805]
[1772819137294,0.001,1961.2,1960.5,0.47032805]
[1772819139621,0.001,1961.2,1960.7,0.47032805]
[1772819140118,0.001,1961.2,1960.5,1.74549369]
[1772819140290,0.001,1961.2,1960.5,0.47032805]
[1772819140691,0.001,1961.2,1960.2,1.74568343]
[1772819140909,0.001,1961.2,1960.3,0.47032805]
[1772819141718,0.001,1961.2,1960.5,0.47032805]
[1772819141921,0.15917652,1961.2,1960.2,0.47032805]
[1772819142125,0.15917652,1961.2,1960.2,1.74570601]
[1772819143325,0.15917652,1961.2,1960.2,1.74568323]
[1772819143821,0.15917652,1961.2,1959.9,2.68687326]
[1772819143822,0.15817652,1961.0,1959.9,2.68687326]
[1772819144120,0.15817652,1961.0,1960.0,0.47032805]
[1772819144423,1.34717652,1961.0,1960.0,0.47032805]
[1772819144598,0.15817652,1961.0,1960.0,0.47032805]
[1772819145816,1.43310129,1960.9,1960.0,1.74583445]
[1772819146823,1.27492477,1960.9,1960.0,0.47032805]
[1772819147001,0.15817652,1960.8,1959.7,0.47032805]
[1772819147320,1.27492477,1960.9,1959.5,0.47032805]
[1772819147518,0.15707652,1960.7,1959.5,0.47032805]
[1772819147719,0.15707652,1960.5,1959.8,0.0011]
[1772819148922,0.15707652,1960.3,1959.6,0.0011]
[1772819149821,1.27538006,1960.2,1959.6,0.0011]
[1772819151044,2.46338006,1960.2,1959.6,0.0011]
[1772819151338,2.62045658,1960.2,1959.6,0.0011]
[1772819153313,1.187,1960.1,1959.6,0.0011]
[1772819153730,1.2755102,1960.0,1959.6,0.0011]
[1772819153921,1.43148672,1960.0,1959.4,0.0011]
[1772819154533,2.28641594,1959.8,1959.4,0.0011]
[1772819154905,0.15597652,1959.8,1959.4,0.0011]
[1772819155110,1.2755102,1960.0,1959.4,0.0011]
[1772819155111,2.4635102,1960.0,1959.4,1.74732848]
[1772819155537,2.4635102,1960.0,1959.5,0.48906581]
[1772819155927,1.188,1960.4,1959.6,0.48906581]
[1772819156138,1.2751849,1960.5,1959.6,0.48906581]
[1772819156805,5.10047855,1960.7,1959.6,0.48906581]
[1772819157440,1.27492477,1960.9,1959.6,0.48906581]
[1772819157942,1.27492477,1960.9,1959.8,0.48906581]
[1772819159905,1.54130772,1961.0,1960.0,0.48906581]
[1772819160206,2.81618169,1961.0,1960.0,0.48906581]
[1772819160629,1.62818169,1961.0,1960.0,0.48906581]
[1772819160831,2.81618169,1961.0,1960.0,0.48906581]
[1772819161020,0.001,1960.8,1960.0,0.48906581]
[1772819162011,0.35330772,1961.0,1960.2,0.48038704]
[1772819163239,1.27581903,1961.1,1960.3,0.48038704]
[1772819164616,0.001,1961.1,1960.4,1.27524994]
[1772819164936,0.001,1961.1,1960.5,0.48038704]
[1772819165624,0.001,1961.1,1959.9,5.10206499]
[1772819165625,1.188,1961.0,1960.2,0.48038704]
[1772819165828,0.15697652,1960.7,1959.6,0.48038704]
[1772819166550,0.15697652,1960.6,1959.7,1.75718865]
[1772819166748,1.2751849,1960.5,1959.7,1.75718865]
[1772819166916,1.27516092,1960.6,1959.8,0.48038704]
[1772819167831,0.15697652,1960.5,1959.7,0.0011]
[1772819168828,1.27524994,1960.4,1959.7,0.0011]
[1772819169046,1.27524994,1960.4,1959.7,0.48148704]
[1772819169930,2.46309809,1960.7,1959.7,0.48148704]
[1772819170249,1.188,1960.9,1959.7,0.48148704]
[1772819170424,1.27485976,1961.0,1959.7,0.48148704]
[1772819170817,0.001,1961.1,1959.7,0.48148704]
[1772819171151,0.001,1961.1,1959.9,0.48038704]
[1772819172758,0.001,1961.1,1960.0,0.14948499]
[1772819172959,0.001,1961.1,1960.3,0.48038704]
[1772819174039,0.001,1961.0,1960.4,0.48038704]
[1772819174232,5.09775513,1961.7,1960.5,0.48038704]
[1772819174756,1.27440485,1961.7,1960.5,0.48038704]
[1772819175062,1.27420998,1962.0,1960.7,0.48038704]
[1772819176432,1.27418709,1962.1,1960.9,0.48038704]
[1772819176748,0.35457205,1962.2,1960.9,0.48038704]
[1772819176948,1.27419352,1962.1,1960.9,0.48038704]
[1772819177143,1.62870099,1962.2,1961.1,0.48038704]
[1772819177931,2.28739286,1962.1,1961.1,0.48038704]
[1772819178131,2.48065595,1961.9,1960.8,1.75537125]
[1772819178362,1.185,1961.8,1960.8,1.75537125]
[1772819179158,1.27440485,1961.7,1960.9,0.48038704]